Cogmind - Beta 13 @@@ ROGUE MODE // 2024.04.06 @ 19:20:32 Player: Spuddz Result: Destroyed by as-32723 with Assembled Heavy Rifle Performance ------------- Evolutions (0) 0 Regions Visited (2) 400 Robots Destroyed (17) 85 Value Destroyed (460) 460 Prototype IDs (0) 0 Alien Tech Used (0) 0 Bonus (0) 0 TOTAL SCORE: 945 Bonus ------- None Cogmind --------- Core Integrity 0/250 Matter 237/300 Energy 250/250 System Corruption 0% Temperature Cool (10) Movement Treading (160) Location -10/Mines Parts ------- > --- POWER (1) -------- Ion Engine > --- PROPULSION (2) --- Light Treads Light Treads > --- UTILITY (2) ------ Large Storage Unit Structural Scanner > --- WEAPON (2) ------- Light Assault Rifle Grenade Launcher > --- INVENTORY (15) --- Ion Engine Light Treads Flight Unit ECM Suite Light Armor Plating Light Armor Plating Light Armor Plating Light Armor Plating Light Armor Plating Light Armor Plating EM Pulse Gun Light Assault Rifle Light Assault Rifle Peak State ------------ > --- POWER ------------ Ion Engine > --- PROPULSION ------- Light Treads Light Treads > --- UTILITY ---------- Large Storage Unit Structural Scanner > --- WEAPON ----------- Light Assault Rifle Light Assault Rifle > --- INVENTORY -------- Ion Engine Light Treads Light Treads Light Treads Wheel Compact Wheel ECM Suite EM Pulse Gun Light Assault Rifle Light Assault Rifle [Rating: 8] Favorites ----------- Power Ion Engine Engine Ion Engine Propulsion Light Treads Treads Light Treads Leg Aluminum Leg Utility Large Storage Unit Device Structural Scanner Storage Large Storage Unit Weapon Light Assault Rifle Ballistic Gun Light Assault Rifle Launcher Grenade Launcher Build | -11 -10 -10 ------- Run | Yrd Mat Min Slots Evolved . | . . . Power . | . . . Propulsion . | . . . Utility . | . . . Weapon . | . . . Parts Attached 11 | 1 8 2 Power 1 | . 1 . Engine 1 | . 1 . Core . | . . . Reactor . | . . . Propulsion 5 | . 5 . Treads 5 | . 5 . Leg . | . . . Wheel . | . . . Hover . | . . . Flight . | . . . Utility 2 | . 2 . Device 1 | . 1 . Storage 1 | . 1 . Processor . | . . . Hackware . | . . . Protection . | . . . Artifact . | . . . Weapon 3 | 1 . 2 Energy Gun . | . . . Energy Cannon . | . . . Ballistic Gun 2 | 1 . 1 Ballistic Cannon . | . . . Launcher 1 | . . 1 Special Weapon . | . . . Impact Weapon . | . . . Slashing Weapon . | . . . Piercing Weapon . | . . . Special Melee Weapon . | . . . Unidentified Prototypes . | . . . Parts Lost 3 | . 3 . Power 1 | . 1 . Propulsion 1 | . 1 . Utility . | . . . Weapon 1 | . 1 . Highest Loss Streak 2 | . 2 . To Critical Strikes . | . . . Average Slot Usage (%) 96 | . 95 100 Engine 14 | . 14 14 Treads 22 | . 21 28 Leg 5 | . 6 . Device 11 | . 10 14 Storage 14 | . 14 14 Ballistic Gun 24 | . 27 16 Launcher 2 | . . 11 Naked Turns . | . . . Heaviest Build 30 | 12 28 30 Greatest Support 40 | 20 40 40 Greatest Overweight (x) 1 | . 1 . Average Overweight (x) . | . . . Largest Inventory Capacity 15 | 8 15 15 Average Capacity 14 | 8 14 15 Most Carried 15 | 6 15 13 Average Carried 11 | 6 11 12 Final Capacity 15 | 8 15 15 Final Carried 13 | 6 13 13 Class Distribution -------------------- 100% | Mutant Dominant Class ---------------- Mutant | -10/Materials Mutant | -10/Mines Resources | -11 -10 -10 ----------- Run | Yrd Mat Min Matter Collected 378 | 183 195 . Remotely . | . . . Salvage Created 600 | . 590 10 Parts 38 | . 38 . Haulers Intercepted 2 | . 2 . Recyclers Shooed . | . . . Parts Field Recycled . | . . . Retrieved Matter . | . . . Parts Self-Destructed . | . . . Prevented . | . . . Kills | -11 -10 -10 ------- Run | Yrd Mat Min Combat Hostiles Destroyed 15 | . 14 1 Guns 13 | . 13 . AOE 2 | . 1 1 Classes Destroyed 5 | . 4 1 Hauler 2 | . 2 . Operator 1 | . 1 . Swarmer 3 | . 3 . Grunt 11 | . 11 . Assembled 1 | . . 1 Best Kill Streak 8 | . 8 1 Combat Bots Only 8 | . 8 1 Max Kills in Single Turn 1 | . 1 1 Gunslinging . | . . . Exploded 1 | . 1 1 Melee . | . . . Uniques/NPCs Destroyed . | . . . Combat | -11 -10 -10 -------- Run | Yrd Mat Min Hostile Shots Fired 86 | . 83 3 Missed 20 | . 19 1 Damage Taken 841 | . 789 52 Core 266 | . 235 31 Absorbed by Shields . | . . . Core Remaining (%) 100 | 100 . . Volleys Fired 64 | . 62 2 Largest 2 | . 2 2 Hottest 50 | . 40 50 Shots Fired 128 | . 124 4 Gun 126 | . 124 2 Cannon . | . . . Launcher 2 | . . 2 Special . | . . . Kinetic 126 | . 124 2 Thermal . | . . . Explosive 2 | . . 2 Electromagnetic . | . . . Robot Hit Streak 12 | . 12 1 Robot Miss Streak 3 | . 3 2 Penetration Max . | . . . Secondary Targets 2 | . 2 . Max Gunslinging Chain 1 | . 1 . Shots Hit Robots 88 | . 87 1 Core Hits 40 | . 38 2 Critical Kills . | . . . Critical Parts Destroyed 2 | . 2 . Critical Strikes 2 | . 2 . Destroy 2 | . 2 . Melee Attacks . | . . . Impact . | . . . Slashing . | . . . Piercing . | . . . Sneak Attacks . | . . . Combat Hostiles . | . . . Follow-up Attacks . | . . . Damage Inflicted 889 | . 798 91 Guns 704 | . 704 . Cannons . | . . . Explosions 185 | . 94 91 Melee . | . . . Ramming . | . . . Kinetic 704 | . 704 . Thermal . | . . . Explosive 185 | . 94 91 Electromagnetic . | . . . Impact . | . . . Slashing . | . . . Piercing . | . . . Highest Corruption . | . . . Average Corruption . | . . . Corruption Purged . | . . . Corruption Blocked . | . . . Overload Shots . | . . . Overflow Damage 109 | . 107 2 Projectiles . | . . . Explosions 109 | . 107 2 Melee . | . . . Knockbacks . | . . . Impact . | . . . Kinetic . | . . . Secondary . | . . . Self-Inflicted Damage 136 | . 113 23 Shots 2 | . 1 1 Rammed . | . . . Targets Rammed . | . . . Kicked . | . . . Crushed . | . . . Highest Temperature 27 | . 27 10 Average Temperature 9 | . 9 7 Received Heat Transfer 315 | . 315 . Siege Activations . | . . . Robots Corrupted . | . . . Combat Hostiles . | . . . Parts Fried . | . . . Impact Corruptions . | . . . Robots Melted . | . . . Combat Hostiles . | . . . Parts Melted . | . . . Heat Transferred . | . . . Parts Sabotaged . | . . . Parts Stolen . | . . . Parts Stripped . | . . . Power Chain Reactions . | . . . Alert | -11 -10 -10 ------- Run | Yrd Mat Min Peak Influence 222 | . 222 110 Initial 86 | . . 86 Average 67 | . 60 88 Maximum Alert Level 1 | . 1 . Low Security (%) 97 | 100 96 100 Level 1 2 | . 3 . Level 2 . | . . . Level 3 . | . . . Level 4 . | . . . Level 5 . | . . . High Security . | . . . Max Security . | . . . Squads Dispatched 3 | . 3 . Investigation . | . . . Extermination . | . . . Reinforcement 3 | . 3 . Assault . | . . . Garrison . | . . . Intercept . | . . . Searches Triggered . | . . . Construction Impeded . | . . . Haulers Reinforced . | . . . Active Scanning Responses . | . . . Cargo Convoy Interrupts . | . . . Stealth | -11 -10 -10 --------- Run | Yrd Mat Min Distress Signals 1 | . 1 . Communications Jammed . | . . . Distress Signals . | . . . Times Spotted 30 | . 22 8 Peak Tracking Total 9 | . 9 8 Tactical Retreats . | . . . Traps | -11 -10 -10 ------- Run | Yrd Mat Min Traps Triggered . | . . . Indirectly . | . . . Trap Hack Attempts . | . . . Triggered . | . . . Disarmed . | . . . Reprogrammed . | . . . Reused . | . . . Traps Extracted . | . . . Installed . | . . . Triggered 1 | . . 1 Machines | -11 -10 -10 ---------- Run | Yrd Mat Min Machines Disabled 1 | . 1 . Max in Single Turn 1 | . 1 . Machines Repaired . | . . . Machines Dismantled . | . . . Machines Sabotaged . | . . . Overloaded Fab Kills . | . . . Hacking | -11 -10 -10 --------- Run | Yrd Mat Min Machines Accessed 1 | . 1 . Terminals 1 | . 1 . Fabricators . | . . . Repair Stations . | . . . Recycling Units . | . . . Scanalyzers . | . . . Garrison Access . | . . . Total Hacks 1 | . 1 . Successful . | . . . Failed 1 | . 1 . Catastrophic 1 | . 1 . Database Lockouts . | . . . Manual 1 | . 1 . Terminals 1 | . 1 . Fabricators . | . . . Repair Stations . | . . . Recycling Units . | . . . Scanalyzers . | . . . Garrison Access . | . . . Terminal Hacks . | . . . Fabricator Hacks . | . . . Repair Station Hacks . | . . . Recycling Unit Hacks . | . . . Scanalyzer . | . . . Garrison Access Hacks . | . . . Unauthorized Hacks . | . . . Terminals . | . . . Fabricators . | . . . Repair Stations . | . . . Recycling Units . | . . . Scanalyzers . | . . . Garrison Access . | . . . Data Cores Recovered . | . . . Used . | . . . Hacking Detections . | . . . Full Trace Events . | . . . Feedback Events . | . . . Feedback Blocked . | . . . Robot Schematics Acquired . | . . . Robots Built . | . . . Authchips . | . . . Time . | . . . Total Robot Build Rating . | . . . Part Schematics Acquired . | . . . Parts Built . | . . . Authchips . | . . . Time . | . . . Total Part Build Rating . | . . . Parts Repaired . | . . . Time . | . . . Parts Recycled . | . . . Recycled Matter . | . . . Retrieved Matter . | . . . Retrieved Components . | . . . Parts Scanalyzed . | . . . Part Schematics Acquired . | . . . Parts Damaged . | . . . Bothacking | -11 -10 -10 ------------ Run | Yrd Mat Min Used RIF Installer . | . . . Robots Hacked . | . . . Non-combat . | . . . Combat . | . . . Robot Hacks Applied . | . . . Relay Couplers Released . | . . . Fabnet Peak Effective % . | . . . Robots Rewired . | . . . Allies Hacked . | . . . Hacks Repelled . | . . . Allies | -11 -10 -10 -------- Run | Yrd Mat Min Total Allies . | . . . Largest Group . | . . . Highest-Rated Group . | . . . Highest-Rated Ally . | . . . Total Orders . | . . . Ally Attacks . | . . . Total Damage . | . . . Kills . | . . . Allies Corrupted . | . . . Allies Melted . | . . . Intel | -11 -10 -10 ------- Run | Yrd Mat Min Robot Analysis Total . | . . . Derelict Logs Recovered . | . . . Drone Launches . | . . . Drone Recoveries . | . . . Exploration | -11 -10 -10 ------------- Run | Yrd Mat Min Turns Passed 1211 | 2 906 303 Spaces Moved 604 | 1 429 174 Core . | . . . Treads 504 | . 330 174 Legs 100 | 1 99 . Wheels . | . . . Hover . | . . . Flight . | . . . Fastest Speed 120 | 120 120 160 Average Speed 162 | 120 163 160 Slowest Speed 190 | 120 190 160 Overloaded Moves . | . . . Propulsion Burnouts . | . . . Robots Hopped . | . . . Cave-ins Triggered . | . . . Exploration Rate (%) 32 | 2 60 35 Regions Visited 2 Branch Regions 1 Pre-discovered Areas . | . . . Known Exits Taken . | . . . Unknown Exits Taken 2 | 1 1 . Scrap Searched . | . . . Spaces Dug . | . . . Terrain Destroyed 40 | . 25 15 Melee . | . . . Projectile . | . . . AOE 40 | . 25 15 Terrain Rammed . | . . . Walls Destroyed . | . . . Machines Disabled . | . . . Actions | -11 -10 -10 --------- Run | Yrd Mat Min Total 736 | 1 540 195 Wait 35 | . 19 16 Move 602 | . 428 174 Hop . | . . . Pick Up 17 | . 16 1 Fast Attach 1 | . 1 . Attach 8 | . 7 1 Detach . | . . . Swap 2 | 1 . 1 Drop 7 | . 7 . Fire 64 | . 62 2 Melee . | . . . Ram . | . . . Kick . | . . . Crush . | . . . Escape Stasis . | . . . Rewire . | . . . Trap . | . . . Miscellaneous . | . . . Route ------- -11/Scrapyard -10/Materials (discovered 2 exits: [*Mat] / [*Min]) -10/Mines History --------- Turn | Location | Event 3 | -11/Scrapyard | Discovered new exit (range 0) 3 | -11/Scrapyard | Entered Materials 308 | -10/Materials | Build established: Mutant 385 | -10/Materials | Discovered new exit (range 14) 496 | -10/Materials | Discovered new exit (range 13) 870 | -10/Materials | Core integrity fell below 50% 880 | -10/Materials | Core integrity fell below 20% 900 | -10/Materials | Derelicts attacked the area 900 | -10/Materials | Destroyed 8 combat bots 909 | -10/Materials | Entered Mines 965 | -10/Mines | YI-UF0 nonchalantly dropped a Grenade Launcher on the ground 1188 | -10/Mines | Assembled infested the area 1212 | -10/Mines | Destroyed by as-32723 with Assembled Heavy Rifle Last Messages --------------- 01176_ U-05 Engineer builds a Wall. 01177_ U-05 Engineer lays Concrete. 01178_ R-06 Scavenger collects Corrupted Imp. Heat Sink. 01179_ U-05 Engineer lays Concrete. 01182_ U-05 Engineer builds a Wall. 01183_ A derelict is hurriedly installing traps. 01183_ U-05 Engineer lays Concrete. 01188_ ALERT: Infestation in the mines, dispatching Demolisher response squad. 01188_ U-05 Engineer lays Concrete. 01188_ U-05 Engineer builds a Wall. 01189_ U-05 Engineer lays Concrete. 01198_ U-05 Engineer builds a Wall. 01199_ U-05 Engineer lays Concrete. 01207_ U-05 Engineer builds a Wall. 01207_ as-45088 destroyed. 01208_ U-05 Engineer lays Concrete. 01210_ Destroyed Asb. F-torch. 01211_ U-05 Engineer lays Concrete. Map ----- +----------------------------------------------------+ | ???????????????????????????????????? | | ???????????????????????????????????? | | ???????????????????????????????????? | | ???????????????????????????????????? | | ???????????????????????????????????? | | ???????????????????????????????????? | | ???????????????????????????????????? | | ???????????????????????????????????? | | ???????????????????????????????????? | | ???????????????????????????????????? | | ???????????????????????????????????? | | ???????????????????????????????????? | | ???????????????????????????????????? | | ???????????????###?????????????????? | | ???????????###### ?????????????????? | | ???????????#####a ?????????????????? | | ??????????? ??????????????????? | | ??????????? aa a ??????????????????? | | ???????????#aa # ??????????????????? | | ???????????# aa## ?????????????????? | | ????????#### ###???#####?????????? | | ????????#### ##???#####?????????? | | ????????## ###???## ?????????? | | ???####### ######## ##?????????? | | ???####### ####### ##?????????? | | ??### ## @ ## ###????????? | | ??## ## ###????????? | | ??## u r ##????????? | | ??## % #### ####??????? | | ??### %## ^######## ######? ##? | | ??#####;u # ######## ##### ##? | | ???####;# # ##?#### ### ##? | | ?????###;; # ##?### ##? | | ?????##### ^ ##?## """ #####? | | ??????############?## """ ######? | | ??????############?## """ ####???# | | ??????###########??## """ ####???## | | ??????## ####### ###???### | | ??????## """ ######## ##???#### | | ??????## """ ###### ###???### | | ??????## """ ## ##?#### ###???## | | ??????## ## ####### ##????## | | ??????## """ ## ####### ##????### | | ??????## """ ## ##????### | | ??????## """ ####### #####???#### | | ??????## ####### #####???### | | ??????## ##???## ##?????### " | | ???????##########???## ##????#### " | | ???????##########???## ##???#### " | | ???????????????####### ######## | +----------------------------------------------------+ Best States ------------- Heat Dissipation 25 Energy Generation 10 Energy Capacity 250 Matter Stores 300 Matter Capacity 300 Sight Range 16 Terrain Scan Density 10 Evasion (%) 45 Recoil Reduction 2 Item Schematics ----------------- None Robot Schematics ------------------ None Fabricated ------------ Nothing Alien Tech Used ----------------- None Achievements -------------- None Challenges ------------ None Game ------ Seed HoverShieldMace Manual? 0 Play Time 00:08:06 Cumulative 11.7 hours Start 2024.04.06 @ 19:13:40 End 2024.04.06 @ 19:20:32 Sessions 1 Manual Loads 0 Difficulty Rogue Special Mode None Game No. 33 Rogue 33 Adventurer 0 Explorer 0 Win Type - Total 0 Types 0/0/0/0/0/0/0/0/0 Lore% 14 Gallery% 17 Achievement% 19 Wizard Run 0 Options --------- Layout 1 ASCII 0 Keyboard 0 Movement Mouse Keybinds 0 Fullscreen 2 Font 32/Terminus Map View 50x35 Zoom Use 0% Tactical HUD 1 Map Filters NONE Filters NONE Steam 1 RUN: d0fe06be-29b5-4a4b-b087-ed4423c3857c